fUST/lending_fUST_20260528
["ID","MTS","AMOUNT","RATE_DAILY","PERIOD"]
[423194646,1779918644000,-640.06,0.0001041,2]
[423194635,1779918644000,-500.0,0.00010136,2]
[423194640,1779918644000,-675.4,0.00010136,2]
[423194638,1779918644000,-500.0,0.00010136,2]
[423194643,1779918644000,-500.0,0.0001041,2]
[423194645,1779918644000,-271.15,0.0001041,2]
[423194622,1779918644000,-500.0,0.00010136,2]
[423194648,1779918644000,-500.0,0.0001041,2]
[423194651,1779918644000,-840.17,0.0001041,2]
[423194653,1779918644000,-500.0,0.0001041,2]
[423194644,1779918644000,-623.3511,0.0001041,2]
[423194652,1779918644000,-500.0,0.0001041,2]
[423194647,1779918644000,-500.0,0.0001041,2]
[423194649,1779918644000,-500.0,0.0001041,2]
[423194634,1779918644000,-500.0,0.00010136,2]
[423194628,1779918644000,-500.0,0.00010136,2]
[423194617,1779918644000,-500.0,0.00010136,2]
[423194616,1779918644000,-500.0,0.00010136,2]
[423194601,1779918644000,-500.0,9.863e-05,2]
[423194602,1779918644000,-675.4,9.863e-05,2]
[423194593,1779918644000,-500.0,9.863e-05,2]
[423194594,1779918644000,-4903.57,9.863e-05,2]
[423194598,1779918644000,-1008.14,9.863e-05,2]
[423194597,1779918644000,-500.0,9.863e-05,2]
[423194596,1779918644000,-500.0,9.863e-05,2]
[423194599,1779918644000,-500.0,9.863e-05,2]
[423194595,1779918644000,-500.0,9.863e-05,2]
[423194600,1779918644000,-500.0,9.863e-05,2]
[423194603,1779918644000,-294.52804662,9.996e-05,2]
[423194604,1779918644000,-221.00960268,0.00010011,2]
[423194605,1779918644000,-883.15437229,0.00010011,2]
[423194624,1779918644000,-500.0,0.00010136,2]
[423194606,1779918644000,-1000.0,0.00010094,2]
[423194613,1779918644000,-500.0,0.00010136,2]
[423194609,1779918644000,-500.0,0.00010136,2]
[423194608,1779918644000,-491.32,0.00010136,2]
[423194610,1779918644000,-500.0,0.00010136,2]
[423194614,1779918644000,-640.06,0.00010136,2]
[423194611,1779918644000,-494.63,0.00010136,2]
[423194612,1779918644000,-623.3511,0.00010136,2]
[423194615,1779918644000,-500.0,0.00010136,2]
[423194650,1779918644000,-500.0,0.0001041,2]
[423194619,1779918644000,-840.17,0.00010136,2]
[423194626,1779918644000,-500.0,0.00010136,2]
[423194625,1779918644000,-636.09,0.00010136,2]
[423194629,1779918644000,-500.0,0.00010136,2]
[423194607,1779918644000,-791.0,0.00010094,2]
[423194655,1779918644000,-897.35,0.0001041,2]
[423194631,1779918644000,-477.28,0.00010136,2]
[423194657,1779918644000,-636.09,0.0001041,2]
[423194687,1779918644000,-418.76,0.00010684,2]
[423194684,1779918644000,-636.09,0.00010684,2]
[423194709,1779918644000,-500.0,0.00010958,2]
[423194708,1779918644000,-640.06,0.00010958,2]
[423194710,1779918644000,-500.0,0.00010958,2]
[423194699,1779918644000,-4903.57,0.00010684,2]
[423194703,1779918644000,-1008.14,0.00010684,2]
[423194701,1779918644000,-500.0,0.00010684,2]
[423194704,1779918644000,-500.0,0.00010684,2]
[423194705,1779918644000,-500.0,0.00010684,2]
[423194707,1779918644000,-605.28,0.00010958,2]
[423194706,1779918644000,-675.4,0.00010684,2]
[423194702,1779918644000,-500.0,0.00010684,2]
[423194683,1779918644000,-500.0,0.00010684,2]
[423194712,1779918644000,-500.0,0.00010958,2]
[423194711,1779918644000,-500.0,0.00010958,2]
[423194714,1779918644000,-500.0,0.00010958,2]
[423194713,1779918644000,-840.17,0.00010958,2]
[423194716,1779918644000,-266.2,0.00010958,2]
[423194715,1779918644000,-500.0,0.00010958,2]
[423194717,1779918644000,-897.35,0.00010958,2]
[423194721,1779918644000,-609.64,0.00010958,2]
[423194719,1779918644000,-636.09,0.00010958,2]
[423194718,1779918644000,-500.0,0.00010958,2]
[423194720,1779918644000,-500.0,0.00010958,2]
[423194724,1779918644000,-4903.57,0.00010958,2]
[423194723,1779918644000,-500.0,0.00010958,2]
[423194654,1779918644000,-500.0,0.0001041,2]
[423194722,1779918644000,-500.0,0.00010958,2]
[423194686,1779918644000,-609.64,0.00010684,2]
[423194637,1779918644000,-273.28,0.00010136,2]
[423194692,1779918644000,-500.0,0.00010684,2]
[423194685,1779918644000,-500.0,0.00010684,2]
[423194664,1779918644000,-366.2,0.0001041,2]
[423194668,1779918644000,-500.0,0.0001041,2]
[423194667,1779918644000,-1008.14,0.0001041,2]
[423194656,1779918644000,-500.0,0.0001041,2]
[423194665,1779918644000,-500.0,0.0001041,2]
[423194658,1779918644000,-500.0,0.0001041,2]
[423194661,1779918644000,-500.0,0.0001041,2]
[423194660,1779918644000,-500.0,0.0001041,2]
[423194662,1779918644000,-500.0,0.0001041,2]
[423194659,1779918644000,-609.64,0.0001041,2]
[423194663,1779918644000,-4903.57,0.0001041,2]
[423194669,1779918644000,-500.0,0.0001041,2]
[423194672,1779918644000,-500.0,0.00010684,2]
[423194666,1779918644000,-500.0,0.0001041,2]
[423194674,1779918644000,-500.0,0.00010684,2]
[423194690,1779918644000,-500.0,0.00010684,2]
[423194682,1779918644000,-897.35,0.00010684,2]
[423194680,1779918644000,-500.0,0.00010684,2]
[423194688,1779918644000,-955.224,0.00010684,2]
[423194679,1779918644000,-500.0,0.00010684,2]
[423194678,1779918644000,-840.17,0.00010684,2]
[423194681,1779918644000,-500.0,0.00010684,2]
[423194670,1779918644000,-675.4,0.0001041,2]
[423194675,1779918644000,-500.0,0.00010684,2]
[423194673,1779918644000,-640.06,0.00010684,2]
[423194676,1779918644000,-500.0,0.00010684,2]
[423194671,1779918644000,-338.24,0.00010684,2]
[423194677,1779918644000,-500.0,0.00010684,2]
[423194764,1779918645000,-500.0,0.00011506,2]
[423194763,1779918645000,-636.09,0.00011506,2]
[423194762,1779918645000,-238.96,0.00011506,2]
[423194766,1779918645000,-500.0,0.00011506,2]
[423194767,1779918645000,-4903.57,0.00011506,2]
[423194770,1779918645000,-500.0,0.00011506,2]
[423194759,1779918645000,-840.17,0.00011506,2]
[423194772,1779918645000,-675.4,0.00011506,2]
[423194771,1779918645000,-500.0,0.00011506,2]
[423194760,1779918645000,-500.0,0.00011506,2]
[423194769,1779918645000,-1008.14,0.00011506,2]
[423194765,1779918645000,-609.64,0.00011506,2]
[423194729,1779918645000,-500.0,0.00010958,2]
[423194781,1779918645000,-449.72,0.0001178,2]
[423194768,1779918645000,-500.0,0.00011506,2]
[423194773,1779918645000,-190.498,0.00011768,2]
[423194775,1779918645000,-648.0,0.00011768,2]
[423194777,1779918645000,-640.06,0.0001178,2]
[423194785,1779918645000,-609.64,0.0001178,2]
[423194779,1779918645000,-500.0,0.0001178,2]
[423194780,1779918645000,-840.17,0.0001178,2]
[423194778,1779918645000,-500.0,0.0001178,2]
[423194783,1779918645000,-636.09,0.0001178,2]
[423194776,1779918645000,-2204.0,0.00011768,2]
[423194782,1779918645000,-897.35,0.0001178,2]
[423194774,1779918645000,-185.0,0.00011768,2]
[423194751,1779918645000,-500.0,0.00011232,2]
[423194761,1779918645000,-897.35,0.00011506,2]
[423194755,1779918645000,-675.4,0.00011232,2]
[423194739,1779918645000,-500.0,0.00011232,2]
[423194752,1779918645000,-1008.14,0.00011232,2]
[423194784,1779918645000,-188.12,0.0001178,2]
[423194726,1779918645000,-500.0,0.00010958,2]
[423194725,1779918645000,-548.4,0.00010958,2]
[423194732,1779918645000,-2637.30222113,0.00011018,2]
[423194728,1779918645000,-500.0,0.00010958,2]
[423194731,1779918645000,-186.69212999,0.00010959,3]
[423194733,1779918645000,-1000.0,0.00011103,2]
[423194727,1779918645000,-1008.14,0.00010958,2]
[423194734,1779918645000,-1000.0,0.00011103,2]
[423194736,1779918645000,-500.0,0.00011232,2]
[423194746,1779918645000,-500.0,0.00011232,2]
[423194735,1779918645000,-640.06,0.00011232,2]
[423194745,1779918645000,-636.09,0.00011232,2]
[423194754,1779918645000,-500.0,0.00011232,2]
[423194738,1779918645000,-454.44,0.00011232,2]
[423194737,1779918645000,-554.72,0.00011232,2]
[423194742,1779918645000,-500.0,0.00011232,2]
[423194741,1779918645000,-342.92,0.00011232,2]
[423194740,1779918645000,-840.17,0.00011232,2]
[423194743,1779918645000,-897.35,0.00011232,2]
[423194748,1779918645000,-606.28,0.00011232,2]
[423194747,1779918645000,-609.64,0.00011232,2]
[423194749,1779918645000,-500.0,0.00011232,2]
[423194750,1779918645000,-4903.57,0.00011232,2]
[423194758,1779918645000,-500.0,0.00011506,2]
[423194756,1779918645000,-640.06,0.00011506,2]
[423194757,1779918645000,-500.0,0.00011506,2]
[423194753,1779918645000,-500.0,0.00011232,2]
[423194744,1779918645000,-500.0,0.00011232,2]
[423194730,1779918645000,-675.4,0.00010958,2]
[423194787,1779918645000,-4903.57,0.0001178,2]
[423194786,1779918645000,-380.28,0.0001178,2]
[423194816,1779918645000,-561.68,0.00012328,2]
[423194817,1779918645000,-840.17,0.00012328,2]
[423194827,1779918645000,-452.48,0.00012602,2]
[423194824,1779918645000,-500.0,0.00012328,2]
[423194826,1779918645000,-640.06,0.00012602,2]
[423194825,1779918645000,-675.4,0.00012328,2]
[423194828,1779918645000,-840.17,0.00012602,2]
[423194829,1779918645000,-897.35,0.00012602,2]
[423194830,1779918645000,-636.09,0.00012602,2]
[423194833,1779918645000,-500.0,0.00012602,2]
[423194832,1779918645000,-4903.57,0.00012602,2]
[423194831,1779918645000,-609.64,0.00012602,2]
[423194834,1779918645000,-1008.14,0.00012602,2]
[423194815,1779918645000,-500.0,0.00012328,2]
[423194835,1779918645000,-500.0,0.00012602,2]
[423194845,1779918645000,-500.0,0.00012876,2]
[423194838,1779918645000,-500.0,0.0001263,2]
[423194841,1779918645000,-897.35,0.00012876,2]
[423194840,1779918645000,-840.17,0.00012876,2]
[423194836,1779918645000,-675.4,0.00012602,2]
[423194847,1779918645000,-500.0,0.00012876,2]
[423194846,1779918645000,-1008.14,0.00012876,2]
[423194839,1779918645000,-640.06,0.00012876,2]
[423194844,1779918645000,-4903.57,0.00012876,2]
[423194843,1779918645000,-609.64,0.00012876,2]
[423194842,1779918645000,-636.09,0.00012876,2]
[423194848,1779918645000,-675.4,0.00012876,2]
[423194797,1779918645000,-153.61,0.00012,2]
[423194837,1779918645000,-171.0,0.00012603,3]
[423194814,1779918645000,-640.06,0.00012328,2]
[423194803,1779918645000,-636.09,0.00012054,2]
[423194813,1779918645000,-579.0,0.00012214,2]
[423194789,1779918645000,-1008.14,0.0001178,2]
[423194823,1779918645000,-1008.14,0.00012328,2]
[423194788,1779918645000,-500.0,0.0001178,2]
[423194792,1779918645000,-675.4,0.0001178,2]
[423194791,1779918645000,-500.0,0.0001178,2]
[423194790,1779918645000,-500.0,0.0001178,2]
[423194796,1779918645000,-150.92,0.00012,2]
[423194794,1779918645000,-150.92,0.00012,2]
[423194795,1779918645000,-150.92,0.00012,2]
[423194798,1779918645000,-640.06,0.00012054,2]
[423194800,1779918645000,-500.0,0.00012054,2]
[423194801,1779918645000,-840.17,0.00012054,2]
[423194802,1779918645000,-897.35,0.00012054,2]
[423194799,1779918645000,-500.0,0.00012054,2]
[423194793,1779918645000,-333.50969985,0.00011996,2]
[423194808,1779918645000,-502.45,0.00012054,2]
[423194810,1779918645000,-675.4,0.00012054,2]
[423194822,1779918645000,-500.0,0.00012328,2]
[423194821,1779918645000,-4903.57,0.00012328,2]
[423194819,1779918645000,-636.09,0.00012328,2]
[423194818,1779918645000,-897.35,0.00012328,2]
[423194811,1779918645000,-1000.0,0.00012214,2]
[423194820,1779918645000,-609.64,0.00012328,2]
[423194804,1779918645000,-609.64,0.00012054,2]
[423194809,1779918645000,-500.0,0.00012054,2]
[423194805,1779918645000,-4903.57,0.00012054,2]
[423194807,1779918645000,-1008.14,0.00012054,2]
[423194806,1779918645000,-500.0,0.00012054,2]
[423194812,1779918645000,-1000.0,0.00012214,2]
[423194863,1779918646000,-840.17,0.00013424,2]
[423194854,1779918646000,-4903.57,0.0001315,2]
[423194864,1779918646000,-897.35,0.00013424,2]
[423194861,1779918646000,-16669.504144,0.0001327,2]
[423194873,1779918646000,-1000.0,0.00013435,2]
[423194874,1779918646000,-2154.76,0.00013698,2]
[423194872,1779918646000,-1000.0,0.00013435,2]
[423194862,1779918646000,-640.06,0.00013424,2]
[423194852,1779918646000,-636.09,0.0001315,2]
[423194856,1779918646000,-1008.14,0.0001315,2]
[423194851,1779918646000,-897.35,0.0001315,2]
[423194853,1779918646000,-609.64,0.0001315,2]
[423194860,1779918646000,-4070.6317785,0.0001327,2]
[423194855,1779918646000,-560.68,0.0001315,2]
[423194858,1779918646000,-675.4,0.0001315,2]
[423194857,1779918646000,-500.0,0.0001315,2]
[423194859,1779918646000,-931.5624724,0.0001327,2]
[423194849,1779918646000,-640.06,0.0001315,2]
[423194865,1779918646000,-636.09,0.00013424,2]
[423194850,1779918646000,-840.17,0.0001315,2]
[423194870,1779918646000,-675.4,0.00013424,2]
[423194879,1779918646000,-2154.76,0.00013698,2]
[423194869,1779918646000,-194.28,0.00013424,2]
[423194889,1779918646000,-2154.76,0.00013698,2]
[423194891,1779918646000,-2154.76,0.00013698,2]
[423194892,1779918646000,-2154.76,0.00013698,2]
[423194890,1779918646000,-2154.76,0.00013698,2]
[423194866,1779918646000,-609.64,0.00013424,2]
[423194888,1779918646000,-2154.76,0.00013698,2]
[423194884,1779918646000,-1957.96433213,0.00013698,2]
[423194887,1779918646000,-2154.76,0.00013698,2]
[423194885,1779918646000,-2024.45752552,0.00013698,2]
[423194886,1779918646000,-130.30247448,0.00013698,2]
[423194893,1779918646000,-1880.21295262,0.00013698,2]
[423194878,1779918646000,-2154.76,0.00013698,2]
[423194881,1779918646000,-196.79566787,0.00013698,2]
[423194877,1779918646000,-2154.76,0.00013698,2]
[423194880,1779918646000,-2154.76,0.00013698,2]
[423194875,1779918646000,-2154.76,0.00013698,2]
[423194876,1779918646000,-2154.76,0.00013698,2]
[423194867,1779918646000,-4903.57,0.00013424,2]
[423194871,1779918646000,-1000.0,0.00013435,2]
[423194868,1779918646000,-1008.14,0.00013424,2]
[423194883,1779918646000,-539.33979203,8.219e-05,2]
[423194920,1779918647000,-1008.14,0.00013698,2]
[423194901,1779918647000,-274.54704738,0.00013698,2]
[423194910,1779918647000,-2154.76,0.00013698,2]
[423194907,1779918647000,-2154.76,0.00013698,2]
[423194906,1779918647000,-573.82704738,0.00013698,2]
[423194902,1779918647000,-2154.76,0.00013698,2]
[423194904,1779918647000,-2144.06704738,0.00013698,2]
[423194905,1779918647000,-1580.93295262,0.00013698,2]
[423194903,1779918647000,-10.69295262,0.00013698,2]
[423194900,1779918647000,-5000.0,8.137e-05,2]
[423194922,1779918647000,-180.00540016,0.00013699,2]
[423194908,1779918647000,-2154.76,0.00013698,2]
[423194909,1779918647000,-2154.76,0.00013698,2]
[423194921,1779918647000,-675.4,0.00013698,2]
[423194913,1779918647000,-840.17,0.00013698,2]
[423194911,1779918647000,-2154.86114403,0.00013698,2]
[423194927,1779918647000,-151.34408918,0.00013699,2]
[423194925,1779918647000,-151.0,0.00013699,2]
[423194926,1779918647000,-387.92,0.00013699,2]
[423194923,1779918647000,-151.0,0.00013699,2]
[423194918,1779918647000,-609.64,0.00013698,2]
[423194924,1779918647000,-151.0,0.00013699,2]
[423194917,1779918647000,-636.09,0.00013698,2]
[423194919,1779918647000,-4903.57,0.00013698,2]
[423194915,1779918647000,-151.0,0.00013698,2]
[423194914,1779918647000,-897.35,0.00013698,2]
[423194912,1779918647000,-640.06,0.00013698,2]
[423194916,1779918647000,-151.0,0.00013698,2]
[423196353,1779919272000,-4230.63234085,6.815e-05,2]
[423196473,1779919484000,-2048.13869347,6.68e-05,2]
[423196474,1779919505000,-5000.0,6.747e-05,2]
[423196478,1779919520000,-500.0,6.954e-05,2]
[423196477,1779919520000,-500.0,6.954e-05,2]
[423196475,1779919520000,-500.0,6.954e-05,2]
[423196476,1779919520000,-500.0,6.954e-05,2]
[423196479,1779919520000,-485.41396517,6.954e-05,2]
[423196480,1779919526000,5000.0,6.954e-05,2]
[423196482,1779919532000,-219.48000593,6.972e-05,2]
[423196483,1779919543000,-570.307,6.989e-05,2]
[423196485,1779919563000,-1306.78567444,7.135e-05,2]
[423196486,1779919564000,2670.0738311,6.699e-05,2]
[423196487,1779919573000,12496.10082989,6.967e-05,2]
[423196488,1779919607000,-249.68,6.967e-05,2]
[423196498,1779919638000,-484.584,6.967e-05,2]
[423196501,1779919656000,-489.167,6.967e-05,2]
[423196502,1779919675000,-902.936,6.967e-05,2]
[423196504,1779919700000,-1371.883,6.967e-05,2]
[423196505,1779919732000,-2099.89,6.967e-05,2]
[423196553,1779919787000,-2392.57228028,6.967e-05,2]
[423196552,1779919787000,-1107.42771972,6.87e-05,2]
[423196555,1779919824000,-309.71,6.967e-05,2]
[423196586,1779919831000,-952.92585533,7.069e-05,2]
[423196583,1779919831000,-614.41922355,6.97e-05,2]
[423196582,1779919831000,-1853.47333925,6.967e-05,2]
[423196588,1779919831000,-27.16874636,7.07e-05,2]
[423196580,1779919831000,-2022.49999998,6.967e-05,2]
[423196587,1779919831000,-247.07414467,7.069e-05,2]
[423196585,1779919831000,-284.38387541,6.97e-05,2]
[423196590,1779919831000,-1071.458,7.07e-05,2]
[423196589,1779919831000,-799.47351194,7.07e-05,2]
[423196594,1779919831000,-198833.67197994,7.135e-05,2]
[423196595,1779919831000,-36042.6651965,7.135e-05,2]
[423196584,1779919831000,-1313.94947,6.97e-05,2]
[423196592,1779919831000,-300.0,7.134e-05,2]
[423196593,1779919831000,-300.0,7.134e-05,2]
[423196591,1779919831000,-566.32802006,7.07e-05,2]
[423196614,1779919838000,-3992.27447946,7.135e-05,2]
[423196619,1779919838000,-5000.0,7.167e-05,2]
[423196609,1779919838000,-254.84923532,6.968e-05,2]
[423196623,1779919838000,-2643.28088033,7.27e-05,2]
[423196626,1779919838000,-300.0,7.383e-05,2]
[423196621,1779919838000,-1696.03012674,7.17e-05,2]
[423196622,1779919838000,-72.82310753,7.27e-05,2]
[423196610,1779919838000,-1454503.50927268,7.135e-05,2]
[423196620,1779919838000,-1000.33685746,7.17e-05,2]
[423196624,1779919838000,-300.0,7.383e-05,2]
[423196615,1779919838000,-64115.88717106,7.135e-05,2]
[423196612,1779919838000,-3715.72626716,7.135e-05,2]
[423196616,1779919838000,-1477.8415112,7.135e-05,2]
[423196611,1779919838000,-20687.6784109,7.135e-05,2]
[423196613,1779919838000,-9907.9832119,7.135e-05,2]
[423196618,1779919838000,-274566.60371799,7.135e-05,2]
[423196617,1779919838000,-845.51462516,7.135e-05,2]
[423196625,1779919838000,-300.0,7.383e-05,2]
[423196629,1779919838000,-300.0,7.383e-05,2]
[423196643,1779919838000,-1055.60714169,8e-05,2]
[423196641,1779919838000,-420.0,7.848e-05,2]
[423196642,1779919838000,-527.58610035,8e-05,2]
[423196644,1779919838000,-986.21441016,8e-05,2]
[423196628,1779919838000,-300.0,7.383e-05,2]
[423196640,1779919838000,-2967.77969735,7.727e-05,2]
[423196637,1779919838000,-300.0,7.383e-05,2]
[423196639,1779919838000,-600.0,7.53e-05,2]
[423196635,1779919838000,-300.0,7.383e-05,2]
[423196632,1779919838000,-300.0,7.383e-05,2]
[423196636,1779919838000,-300.0,7.383e-05,2]
[423196633,1779919838000,-300.0,7.383e-05,2]
[423196631,1779919838000,-300.0,7.383e-05,2]
[423196638,1779919838000,-300.0,7.383e-05,2]
[423196630,1779919838000,-300.0,7.383e-05,2]
[423196634,1779919838000,-300.0,7.383e-05,2]
[423196627,1779919838000,-300.0,7.383e-05,2]
[423196727,1779919840000,-500.0,8.219e-05,2]
[423196734,1779919840000,-500.0,8.219e-05,2]
[423196729,1779919840000,-500.0,8.219e-05,2]
[423196728,1779919840000,-500.0,8.219e-05,2]
[423196732,1779919840000,-500.0,8.219e-05,2]
[423196733,1779919840000,-500.0,8.219e-05,2]
[423196731,1779919840000,-500.0,8.219e-05,2]
[423196726,1779919840000,-323.162959,8.219e-05,2]
[423196669,1779919840000,-500.0,8.219e-05,2]
[423196670,1779919840000,-500.0,8.219e-05,2]
[423196671,1779919840000,-500.0,8.219e-05,2]
[423196678,1779919840000,-500.0,8.219e-05,2]
[423196672,1779919840000,-500.0,8.219e-05,2]
[423196674,1779919840000,-500.0,8.219e-05,2]
[423196673,1779919840000,-276.61308722,8.219e-05,2]
[423196667,1779919840000,-500.0,8.219e-05,2]
[423196675,1779919840000,-500.0,8.219e-05,2]
[423196668,1779919840000,-546.57025989,8.219e-05,2]
[423196677,1779919840000,-500.0,8.219e-05,2]
[423196676,1779919840000,-500.0,8.219e-05,2]
[423196681,1779919840000,-509.64,8.219e-05,2]
[423196691,1779919840000,-500.0,8.219e-05,2]
[423196682,1779919840000,-500.0,8.219e-05,2]
[423196689,1779919840000,-551.38369595,8.219e-05,2]
[423196679,1779919840000,-500.0,8.219e-05,2]
[423196684,1779919840000,-500.0,8.219e-05,2]
[423196666,1779919840000,-500.0,8.219e-05,2]
[423196663,1779919840000,-500.0,8.219e-05,2]
[423196730,1779919840000,-500.0,8.219e-05,2]
[423196648,1779919840000,-187.46005645,8e-05,2]
[423196649,1779919840000,-1276.59079251,8e-05,2]
[423196650,1779919840000,-193.90101206,8e-05,2]
[423196652,1779919840000,-500.0,8.219e-05,2]
[423196655,1779919840000,-500.0,8.219e-05,2]
[423196651,1779919840000,-500.0,8.219e-05,2]
[423196665,1779919840000,-532.56,8.219e-05,2]
[423196654,1779919840000,-372.25986351,8.219e-05,2]
[423196656,1779919840000,-500.0,8.219e-05,2]
[423196658,1779919840000,-500.0,8.219e-05,2]
[423196659,1779919840000,-500.0,8.219e-05,2]
[423196660,1779919840000,-500.0,8.219e-05,2]
[423196661,1779919840000,-500.0,8.219e-05,2]
[423196664,1779919840000,-500.0,8.219e-05,2]
[423196662,1779919840000,-902.8844,8.219e-05,2]
[423196653,1779919840000,-500.0,8.219e-05,2]
[423196685,1779919840000,-500.0,8.219e-05,2]
[423196657,1779919840000,-500.0,8.219e-05,2]
[423196683,1779919840000,-500.0,8.219e-05,2]
[423196719,1779919840000,-500.0,8.219e-05,2]
[423196708,1779919840000,-500.0,8.219e-05,2]
[423196716,1779919840000,-500.0,8.219e-05,2]
[423196710,1779919840000,-500.0,8.219e-05,2]
[423196715,1779919840000,-500.0,8.219e-05,2]
[423196712,1779919840000,-500.51875377,8.219e-05,2]
[423196718,1779919840000,-500.0,8.219e-05,2]
[423196720,1779919840000,-500.0,8.219e-05,2]
[423196713,1779919840000,-500.0,8.219e-05,2]
[423196711,1779919840000,-500.0,8.219e-05,2]
[423196714,1779919840000,-500.60166429,8.219e-05,2]
[423196722,1779919840000,-500.0,8.219e-05,2]
[423196724,1779919840000,-500.0,8.219e-05,2]
[423196723,1779919840000,-500.0,8.219e-05,2]
[423196725,1779919840000,-500.0,8.219e-05,2]
[423196688,1779919840000,-500.0,8.219e-05,2]
[423196717,1779919840000,-500.0,8.219e-05,2]
[423196709,1779919840000,-500.0,8.219e-05,2]
[423196721,1779919840000,-500.0,8.219e-05,2]
[423196705,1779919840000,-500.0,8.219e-05,2]
[423196690,1779919840000,-500.0,8.219e-05,2]
[423196707,1779919840000,-500.0,8.219e-05,2]
[423196686,1779919840000,-435.88337705,8.219e-05,2]
[423196680,1779919840000,-500.0,8.219e-05,2]
[423196692,1779919840000,-500.0,8.219e-05,2]
[423196694,1779919840000,-500.0,8.219e-05,2]
[423196695,1779919840000,-500.0,8.219e-05,2]
[423196697,1779919840000,-500.0,8.219e-05,2]
[423196687,1779919840000,-500.0,8.219e-05,2]
[423196699,1779919840000,-500.0,8.219e-05,2]
[423196704,1779919840000,-500.0,8.219e-05,2]
[423196702,1779919840000,-500.0,8.219e-05,2]
[423196693,1779919840000,-495.6394583,8.219e-05,2]
[423196703,1779919840000,-500.0,8.219e-05,2]
[423196701,1779919840000,-500.0,8.219e-05,2]
[423196700,1779919840000,-500.0,8.219e-05,2]
[423196706,1779919840000,-500.0,8.219e-05,2]
[423196769,1779919841000,-500.0,8.219e-05,2]
[423196775,1779919841000,-500.0,8.219e-05,2]
[423196774,1779919841000,-500.0,8.219e-05,2]
[423196778,1779919841000,-500.0,8.219e-05,2]
[423196772,1779919841000,-500.0,8.219e-05,2]
[423196766,1779919841000,-500.0,8.219e-05,2]
[423196773,1779919841000,-500.0,8.219e-05,2]
[423196770,1779919841000,-500.0,8.219e-05,2]
[423196765,1779919841000,-500.0,8.219e-05,2]
[423196780,1779919841000,-44.40267591,8.219e-05,2]
[423196767,1779919841000,-500.0,8.219e-05,2]
[423196783,1779919841000,-500.0,8.219e-05,2]
[423196777,1779919841000,-522.89,8.219e-05,2]
[423196794,1779919841000,-500.0,8.219e-05,2]
[423196779,1779919841000,-500.0,8.219e-05,2]
[423196782,1779919841000,-660.5,8.219e-05,2]
[423196776,1779919841000,-350.34889778,8.219e-05,2]
[423196784,1779919841000,-500.0,8.219e-05,2]
[423196788,1779919841000,-500.0,8.219e-05,2]
[423196795,1779919841000,-500.0,8.219e-05,2]
[423196786,1779919841000,-34.61178303,8.219e-05,2]
[423196787,1779919841000,-500.0,8.219e-05,2]
[423196790,1779919841000,-500.0,8.219e-05,2]
[423196792,1779919841000,-500.0,8.219e-05,2]
[423196793,1779919841000,-500.0,8.219e-05,2]
[423196768,1779919841000,-500.0,8.219e-05,2]
[423196791,1779919841000,-500.0,8.219e-05,2]
[423196781,1779919841000,-455.59732409,8.219e-05,2]
[423196763,1779919841000,-500.0,8.219e-05,2]
[423196745,1779919841000,-500.0,8.219e-05,2]
[423196762,1779919841000,-500.0,8.219e-05,2]
[423196785,1779919841000,-465.38821697,8.219e-05,2]
[423196736,1779919841000,-500.0,8.219e-05,2]
[423196735,1779919841000,-500.0,8.219e-05,2]